Cogmind - Beta 13 @@@ ROGUE MODE // 2024.03.08 @ 14:31:06 Player: xolophreny Result: Destroyed by G-34 Mercenary with Small Laser Performance ------------- Evolutions (0) 0 Regions Visited (2) 400 Robots Destroyed (11) 55 Value Destroyed (244) 244 Prototype IDs (0) 0 Alien Tech Used (0) 0 Bonus (0) 0 TOTAL SCORE: 699 Bonus ------- None Cogmind --------- Core Integrity 0/250 Matter 293/300 Energy 83/100 System Corruption 0% Temperature Warning (324) Movement Core (1350) Ox26 Location -10/Mines Parts ------- > --- POWER (1) -------- (None) > --- PROPULSION (2) --- (None) > --- UTILITY (2) ------ Huge Storage Unit > --- WEAPON (2) ------- Light Assault Rifle > --- INVENTORY (25) --- Light Ion Engine Light Ion Engine Light Ion Engine Compact Wheel Compact Wheel Large Storage Unit Medium Laser Peak State ------------ > --- POWER ------------ Ion Engine > --- PROPULSION ------- Compact Wheel Compact Wheel > --- UTILITY ---------- Huge Storage Unit Terrain Scanner > --- WEAPON ----------- Particle Gun Light Assault Rifle > --- INVENTORY -------- Light Ion Engine Light Ion Engine Compact Wheel Compact Wheel Large Storage Unit Medium Laser Light Assault Rifle [Rating: 8] Favorites ----------- Power Ion Engine Engine Ion Engine Propulsion Compact Wheel Wheel Compact Wheel Utility Huge Storage Unit Device Terrain Scanner Storage Huge Storage Unit Weapon Light Assault Rifle Energy Gun Medium Laser Ballistic Gun Light Assault Rifle Build | -11 -10 -10 ------- Run | Yrd Mat Min Slots Evolved . | . . . Power . | . . . Propulsion . | . . . Utility . | . . . Weapon . | . . . Parts Attached 16 | 6 4 6 Power 4 | 1 1 2 Engine 4 | 1 1 2 Core . | . . . Reactor . | . . . Propulsion 4 | 2 . 2 Treads . | . . . Leg . | . . . Wheel 4 | 2 . 2 Hover . | . . . Flight . | . . . Utility 3 | 1 2 . Device 1 | . 1 . Storage 2 | 1 1 . Processor . | . . . Hackware . | . . . Protection . | . . . Artifact . | . . . Weapon 5 | 2 1 2 Energy Gun 2 | 1 . 1 Energy Cannon . | . . . Ballistic Gun 3 | 1 1 1 Ballistic Cannon . | . . . Launcher . | . . . Special Weapon . | . . . Impact Weapon . | . . . Slashing Weapon . | . . . Piercing Weapon . | . . . Special Melee Weapon . | . . . Unidentified Prototypes . | . . . Parts Lost 8 | . . 8 Power 1 | . . 1 Propulsion 4 | . . 4 Utility 1 | . . 1 Weapon 2 | . . 2 Highest Loss Streak 6 | . . 6 To Critical Strikes . | . . . Average Slot Usage (%) 92 | . 95 88 Engine 13 | . 14 12 Wheel 26 | . 28 23 Device 9 | . 9 9 Storage 14 | . 14 14 Energy Gun 8 | . 7 9 Ballistic Gun 19 | . 20 18 Naked Turns . | . . . Heaviest Build 90 | 13 89 90 Greatest Support 32 | 26 26 32 Greatest Overweight (x) 3 | . 3 2 Average Overweight (x) 1 | . 1 2 Largest Inventory Capacity 25 | 8 25 25 Average Capacity 20 | 7 20 25 Most Carried 9 | 3 9 9 Average Carried 6 | 1 5 7 Final Capacity 25 | 8 25 25 Final Carried 9 | 3 9 7 Class Distribution -------------------- 68% | Mutant 31% | Scavenger-Mutant Dominant Class ---------------- Mutant | -10/Materials Scavenger-Mutant | -10/Mines Resources | -11 -10 -10 ----------- Run | Yrd Mat Min Matter Collected 396 | 263 66 67 Remotely . | . . . Salvage Created 449 | 93 188 168 Parts 24 | 2 13 9 Haulers Intercepted . | . . . Recyclers Shooed . | . . . Parts Field Recycled . | . . . Retrieved Matter . | . . . Parts Self-Destructed . | . . . Prevented . | . . . Kills | -11 -10 -10 ------- Run | Yrd Mat Min Combat Hostiles Destroyed 8 | . 5 3 Guns 8 | . 5 3 Classes Destroyed 3 | 1 2 . Recycler 3 | 1 1 1 Swarmer 3 | . 3 . Grunt 5 | . 2 3 Best Kill Streak 4 | 1 4 1 Combat Bots Only 3 | . 3 1 Max Kills in Single Turn 1 | 1 1 1 Gunslinging . | . . . Exploded . | . . . Melee . | . . . Uniques/NPCs Destroyed . | . . . Combat | -11 -10 -10 -------- Run | Yrd Mat Min Hostile Shots Fired 82 | . 22 60 Missed 23 | . 11 12 Damage Taken 829 | . 134 695 Core 250 | . 29 221 Absorbed by Shields . | . . . Core Remaining (%) 100 | 100 . . Volleys Fired 54 | 3 16 35 Largest 2 | 2 2 2 Hottest 85 | 70 70 85 Shots Fired 96 | 6 32 58 Gun 96 | 6 32 58 Cannon . | . . . Launcher . | . . . Special . | . . . Kinetic 76 | 3 26 47 Thermal 20 | 3 6 11 Explosive . | . . . Electromagnetic . | . . . Robot Hit Streak 9 | 5 9 8 Robot Miss Streak 5 | 1 2 5 Penetration Max . | . . . Secondary Targets 1 | . . 1 Max Gunslinging Chain 1 | . . 1 Shots Hit Robots 66 | 5 23 38 Core Hits 28 | 2 13 13 Critical Kills . | . . . Critical Parts Destroyed . | . . . Critical Strikes 3 | 1 1 1 Burn 3 | 1 1 1 Melee Attacks . | . . . Impact . | . . . Slashing . | . . . Piercing . | . . . Sneak Attacks . | . . . Combat Hostiles . | . . . Follow-up Attacks . | . . . Damage Inflicted 621 | 53 200 368 Guns 621 | 53 200 368 Cannons . | . . . Explosions . | . . . Melee . | . . . Ramming . | . . . Kinetic 422 | 16 138 268 Thermal 199 | 37 62 100 Explosive . | . . . Electromagnetic . | . . . Impact . | . . . Slashing . | . . . Piercing . | . . . Highest Corruption . | . . . Average Corruption . | . . . Corruption Purged . | . . . Corruption Blocked . | . . . Overload Shots . | . . . Overflow Damage . | . . . Projectiles . | . . . Explosions . | . . . Melee . | . . . Knockbacks . | . . . Impact . | . . . Kinetic . | . . . Secondary . | . . . Self-Inflicted Damage . | . . . Shots . | . . . Rammed . | . . . Targets Rammed . | . . . Kicked . | . . . Crushed . | . . . Highest Temperature 352 | 50 90 352 Average Temperature 116 | 26 28 164 Received Heat Transfer 498 | . 63 435 Effects 2 | . . 2 Energy Bleed 2 | . . 2 Siege Activations . | . . . Robots Corrupted . | . . . Combat Hostiles . | . . . Parts Fried . | . . . Impact Corruptions . | . . . Robots Melted . | . . . Combat Hostiles . | . . . Parts Melted 3 | . 3 . Heat Transferred 740 | 185 259 296 Parts Sabotaged . | . . . Parts Stolen . | . . . Parts Stripped . | . . . Power Chain Reactions . | . . . Alert | -11 -10 -10 ------- Run | Yrd Mat Min Peak Influence 158 | 5 158 116 Initial 61 | . 3 61 Average 68 | 1 70 88 Maximum Alert Level . | . . . Low Security (%) 100 | 100 100 100 Level 1 . | . . . Level 2 . | . . . Level 3 . | . . . Level 4 . | . . . Level 5 . | . . . High Security . | . . . Max Security . | . . . Squads Dispatched 2 | . 2 . Investigation 1 | . 1 . Extermination . | . . . Reinforcement 1 | . 1 . Assault . | . . . Garrison . | . . . Intercept . | . . . Searches Triggered . | . . . Construction Impeded . | . . . Haulers Reinforced . | . . . Active Scanning Responses . | . . . Cargo Convoy Interrupts . | . . . Stealth | -11 -10 -10 --------- Run | Yrd Mat Min Distress Signals 1 | . 1 . Communications Jammed . | . . . Distress Signals . | . . . Times Spotted 17 | . 11 6 Peak Tracking Total 5 | . 5 3 Tactical Retreats . | . . . Traps | -11 -10 -10 ------- Run | Yrd Mat Min Traps Triggered 1 | . 1 . Indirectly . | . . . Trap Hack Attempts . | . . . Triggered . | . . . Disarmed . | . . . Reprogrammed . | . . . Reused . | . . . Traps Extracted . | . . . Installed . | . . . Triggered . | . . . Machines | -11 -10 -10 ---------- Run | Yrd Mat Min Machines Disabled . | . . . Max in Single Turn . | . . . Machines Repaired . | . . . Machines Dismantled . | . . . Machines Sabotaged . | . . . Overloaded Fab Kills . | . . . Hacking | -11 -10 -10 --------- Run | Yrd Mat Min Machines Accessed 1 | . 1 . Terminals 1 | . 1 . Fabricators . | . . . Repair Stations . | . . . Recycling Units . | . . . Scanalyzers . | . . . Garrison Access . | . . . Total Hacks 1 | . 1 . Successful . | . . . Failed 1 | . 1 . Catastrophic 1 | . 1 . Database Lockouts . | . . . Manual 1 | . 1 . Terminals 1 | . 1 . Fabricators . | . . . Repair Stations . | . . . Recycling Units . | . . . Scanalyzers . | . . . Garrison Access . | . . . Terminal Hacks . | . . . Fabricator Hacks . | . . . Repair Station Hacks . | . . . Recycling Unit Hacks . | . . . Scanalyzer . | . . . Garrison Access Hacks . | . . . Unauthorized Hacks . | . . . Terminals . | . . . Fabricators . | . . . Repair Stations . | . . . Recycling Units . | . . . Scanalyzers . | . . . Garrison Access . | . . . Data Cores Recovered . | . . . Used . | . . . Hacking Detections 1 | . 1 . Full Trace Events . | . . . Feedback Events . | . . . Feedback Blocked . | . . . Robot Schematics Acquired . | . . . Robots Built . | . . . Authchips . | . . . Time . | . . . Total Robot Build Rating . | . . . Part Schematics Acquired . | . . . Parts Built . | . . . Authchips . | . . . Time . | . . . Total Part Build Rating . | . . . Parts Repaired . | . . . Time . | . . . Parts Recycled . | . . . Recycled Matter . | . . . Retrieved Matter . | . . . Retrieved Components . | . . . Parts Scanalyzed . | . . . Part Schematics Acquired . | . . . Parts Damaged . | . . . Bothacking | -11 -10 -10 ------------ Run | Yrd Mat Min Used RIF Installer . | . . . Robots Hacked . | . . . Non-combat . | . . . Combat . | . . . Robot Hacks Applied . | . . . Relay Couplers Released . | . . . Fabnet Peak Effective % . | . . . Robots Rewired . | . . . Allies Hacked . | . . . Hacks Repelled . | . . . Allies | -11 -10 -10 -------- Run | Yrd Mat Min Total Allies . | . . . Largest Group . | . . . Highest-Rated Group . | . . . Highest-Rated Ally . | . . . Total Orders . | . . . Ally Attacks . | . . . Total Damage . | . . . Kills . | . . . Allies Corrupted . | . . . Allies Melted . | . . . Intel | -11 -10 -10 ------- Run | Yrd Mat Min Robot Analysis Total . | . . . Derelict Logs Recovered . | . . . Drone Launches . | . . . Drone Recoveries . | . . . Exploration | -11 -10 -10 ------------- Run | Yrd Mat Min Turns Passed 410 | 55 186 169 Spaces Moved 213 | 40 115 58 Core 4 | 4 . . Treads . | . . . Legs . | . . . Wheels 209 | 36 115 58 Hover . | . . . Flight . | . . . Fastest Speed 50 | 50 90 130 Average Speed 113 | 86 114 130 Slowest Speed 135 | 100 135 130 Overloaded Moves . | . . . Propulsion Burnouts . | . . . Robots Hopped . | . . . Cave-ins Triggered . | . . . Exploration Rate (%) 19 | 4 35 20 Regions Visited 2 Branch Regions 1 Pre-discovered Areas . | . . . Known Exits Taken . | . . . Unknown Exits Taken 2 | 1 1 . Scrap Searched . | . . . Spaces Dug . | . . . Terrain Destroyed . | . . . Melee . | . . . Projectile . | . . . AOE . | . . . Terrain Rammed . | . . . Walls Destroyed . | . . . Machines Disabled . | . . . Actions | -11 -10 -10 --------- Run | Yrd Mat Min Total 297 | 52 142 103 Wait 1 | . 1 . Move 211 | 39 114 58 Hop . | . . . Pick Up 9 | 4 4 1 Fast Attach 9 | 5 3 1 Attach 4 | 1 . 3 Detach 3 | . 2 1 Swap 3 | . 1 2 Drop 3 | . 1 2 Fire 54 | 3 16 35 Melee . | . . . Ram . | . . . Kick . | . . . Crush . | . . . Escape Stasis . | . . . Rewire . | . . . Trap . | . . . Miscellaneous . | . . . Route ------- -11/Scrapyard -10/Materials -10/Mines History --------- Turn | Location | Event 7 | -11/Scrapyard | Discovered new exit (range 15) 56 | -11/Scrapyard | Entered Materials 170 | -10/Materials | Discovered new exit (range 12) 242 | -10/Materials | Entered Mines 271 | -10/Mines | Met a Derelict bent on vengeance 393 | -10/Mines | Core integrity fell below 50% 405 | -10/Mines | Core integrity fell below 20% 411 | -10/Mines | Destroyed by G-34 Mercenary with Small Laser Last Messages --------------- 00286_ Acquired 30 matter. 00287_ Acquired 26 matter. 00291_ Acquired Particle Gun. 00321_ R-06 Scavenger destroyed. 00323_ Acquired 11 matter. 00326_ Acquired Lgt. Ion Engine. 00364_ Critical hit (Burn: +37). 00366_ G-34 Mercenary destroyed. 00368_ Terrain Scanner destroyed. 00381_ Overheating: Energy bleed (-52). 00385_ R-06 Scavenger collects Aluminum Leg. 00386_ G-47 Trooper suffers critical hit (Burn). 00389_ R-06 Scavenger collects Ion Engine. 00393_ Com. Wheel destroyed. 00398_ Ion Engine destroyed. 00404_ Overheating: Energy bleed (-20). 00404_ Lgt. Assault Rifle destroyed. 00406_ Particle Gun destroyed. 00409_ Com. Wheel destroyed. 00410_ Critical hit (Burn: +37). Map ----- +----------------------------------------------------+ | ??????????????????????????????????????????????? | | ??????????????????????????????????????????????? | | ??????????????????????????????????????????????? | | ??????????????????????????????????????????????? | | ??????????????????????????????????????????????? | | ?????????????????????##???????????????????????? | | ????????????????????# ???????????????????????? | | ?????????????????### ???????????????????????? | | ?????????????????## ???????????????????????? | | ????????????????## ???????????????????????? | | ??????????????### ????????????????????????? | | ?????????????## ????????????????????????? | | ????????????## ????????????????????????? | | ????????????? ????????????????????????? | | ?????????????? ????????????????????????? | | ??????????????? ????????????????????????? | | ???????????????? #?????? ??#??????????????? | | ?????#???????????# ##??????????#????????????? | | ??????????????????# ##??????????????????????? | | ???????????????????# ##?????????????????????? | | ???????????????????# g ##????????????????????? | | ???????#???????????## u #????????????????????? | | ??????????????????#?##gg #????? ??????????????? | | ????###############??# #?????????#??????????? | | ????# #??# #????????????????????? | | ????# [% ##?#@ ##?#??????#??????????? | | ????# = #??# #####???????????????? | | ????# """ """ == #??# ###########?????? | | ????# """ """ #??## #?????? | | ????# """ """ **#???## ??????? | | ????# #?#?### #####?????????? | | ????# #?????## #?????????????? | | ????##### ##########???#?# ###????????????? | | ????????# ########??????## ##??????????????? | | ????????# ##????## ##???????????????? | | ????????# ###### ##????????????????? | | ????????###### ## ##?????????????????? | | ?????????????## % ###??????????????????? | | ??????????????## ##????????????????????? | | ???????????????# #?????????????????????? | | ???????????????## #?????????????????????? | | ????????????????## #?????????????????????? | | ?????????????????## ##????#????????????????? | | ??????????????????## ##??????????????????????? | | ???????????????????####???????????????????????? | | ??????????#???????????????????????????????????? | | ?????????????????????##???????????????????????? | | | | | | | +----------------------------------------------------+ Best States ------------- Heat Dissipation 25 Energy Generation 10 Energy Capacity 250 Matter Stores 300 Matter Capacity 300 Sight Range 16 Terrain Scan Range 14 Terrain Scan Density 10 Evasion (%) 42 Item Schematics ----------------- None Robot Schematics ------------------ None Fabricated ------------ Nothing Alien Tech Used ----------------- None Achievements -------------- None Challenges ------------ None Game ------ Seed CorruptionTacticalGun Manual? 0 Play Time 00:09:01 Cumulative 17.2 hours Start 2024.03.08 @ 14:17:34 End 2024.03.08 @ 14:31:06 Sessions 1 Manual Loads 0 Difficulty Rogue Special Mode None Game No. 17 Rogue 13 Adventurer 2 Explorer 2 Win Type - Total 0 Types 0/0/0/0/0/0/0/0/0 Lore% 13 Gallery% 19 Achievement% 18 Wizard Run 0 Options --------- Layout 0 ASCII 0 Keyboard 1 Movement Arrows Keybinds 0 Fullscreen 2 Font 18/SmallcapsGlow Map View 76x50 Zoom Use 0% Tactical HUD 1 Map Filters NONE Filters NONE Steam 1 RUN: 897e9ca5-b82d-4c92-8593-ff8c80082d98